{"text_format":"1","workbook":"xlsx","n_sheets":3,"sheets":["ZGŁOSZENIE","PANEL_PRACOWNIKA","administrator"],"not_rendered":{"charts":0,"images":0,"macros":1,"external_links":0,"defined_names":3,"comments":0,"pivot_tables":0},"unopened":[],"bounds":{"document_bytes":16777216,"sheet_cells":100000,"rows_first":2000,"rows_last":500,"rows_between":2000,"halvings":0,"cell_chars":16384,"cell_head_chars":4096},"cells_cut":0,"cells_raw":0,"read":"whole","date_system":"1900"}

{"sheet":"ZGŁOSZENIE","index":0,"n_rows":41,"n_cols":24,"rows_kept":41,"cut":false,"hidden":false,"merged":[[38,2,38,16],[39,2,39,16],[40,2,40,16],[0,0,0,17],[4,0,4,17],[2,0,2,17],[1,0,1,17],[25,1,25,2],[25,3,25,16],[24,1,24,2],[24,3,24,16],[23,1,23,2],[23,3,23,16],[5,1,5,3],[9,4,9,16],[6,1,6,3],[7,1,7,3],[8,1,8,3],[16,1,16,3],[37,2,37,16],[10,1,10,3],[11,1,11,3],[12,1,12,3],[13,1,13,3],[9,1,9,3],[17,4,17,16],[18,4,18,16],[19,4,19,16],[14,1,14,3],[15,1,15,3],[17,1,17,3],[12,4,12,16],[13,4,13,16],[14,4,14,16],[15,4,15,16],[16,4,16,16],[6,4,6,16],[7,4,7,16],[8,4,8,16],[10,4,10,16],[11,4,11,16],[35,0,35,17],[36,1,36,16],[32,2,32,16],[21,0,21,17],[18,1,18,3],[19,1,19,3],[33,1,33,16],[31,2,31,16],[26,1,26,2],[26,3,26,16],[28,0,28,17],[30,2,30,16],[29,1,29,16]]}
[{"$f":"IF(U1>0,\"UWAGA ! Nie wypełniono wymaganych pól (należy wypełnić pola czerwone)\",\"Wypełniono wszystkie wymagane pola\" )","v":"UWAGA ! Nie wypełniono wymaganych pól (należy wypełnić pola czerwone)"},null,null,null,null,null,null,null,null,null,null,null,null,null,null,null,null,null,null,null,{"$f":"SUM(U$2:U$1048576)","v":21},{"$f":"TODAY()","v":"2015-04-21"},{"$f":"V1-E9","v":"2015-04-21"},{"$f":"IF(U1=0,\"tak\",\"nie\")","v":"nie"}]
["ZGŁOSZENIE"]
["Proces rekrutacyjny na 2-tygodniowe szkolenia zagraniczne z umiejętności miękkich, \nprzeznaczony dla doktorantów i młodych naukowców. "]
[]
["DANE O KANDYDACIE"]
[null,"wstaw zdjęcie \nlub załącz osobno"]
[null,"Imię:",null,null,null,null,null,null,null,null,null,null,null,null,null,null,null,{"$f":"D7","v":0},null,null,{"$f":"IF(E7=0,1,0)","v":1},null,null,{"$f":"E7","v":0}]
[null,"Nazwisko:",null,null,null,null,null,null,null,null,null,null,null,null,null,null,null,{"$f":"D8","v":0},null,null,{"$f":"IF(E8=0,1,0)","v":1},null,null,{"$f":"E8","v":0}]
[null,"Data urodzenia:",null,null,null,null,null,null,null,null,null,null,null,null,null,null,null,{"$f":"D9","v":0},null,null,1,null,null,"00:00:00"]
[null,"Wiek:",null,null,{"$f":"IF(E9>0,W1,\"automatycznie\")","v":"automatycznie"}]
[null,"Nr telefonu:",null,null,null,null,null,null,null,null,null,null,null,null,null,null,null,null,null,null,1,null,null,0]
[null,"e-mail:",null,null,null,null,null,null,null,null,null,null,null,null,null,null,null,null,null,null,1,null,null,{"$f":"E12","v":0}]
[null,"Ulica:",null,null,null,null,null,null,null,null,null,null,null,null,null,null,null,{"$f":"D13","v":0},null,null,1,null,null,{"$f":"E13","v":0}]
[null,"Nr budynku:",null,null,null,null,null,null,null,null,null,null,null,null,null,null,null,{"$f":"D14","v":0},null,null,1,null,null,{"$f":"E14","v":0}]
[null,"Nr lokalu:",null,null,null,null,null,null,null,null,null,null,null,null,null,null,null,{"$f":"D15","v":0},null,null,null,null,null,0]
[null,"Kod pocztowy:",null,null,null,null,null,null,null,null,null,null,null,null,null,null,null,null,null,null,1,null,null,0]
[null,"Miejscowość:",null,null,null,null,null,null,null,null,null,null,null,null,null,null,null,null,null,null,1,null,null,0]
[null,"Uczelnia / Instytut:",null,null,null,null,null,null,null,null,null,null,null,null,null,null,null,{"$f":"D18","v":0},null,null,1,null,null,0]
[null,"Wydział / Katedra:",null,null,null,null,null,null,null,null,null,null,null,null,null,null,null,{"$f":"D19","v":0},null,null,1,null,null,0]
[null,"Województwo prowadzenia badań",null,null,null,null,null,null,null,null,null,null,null,null,null,null,null,{"$f":"D20","v":0},null,null,{"$f":"IF(E20=0,1,0)","v":1},null,null,0]
[]
["DANE O OSOBIE REKOMENDUJĄCEJ"]
[]
[null,"Tytuł / stopień:",null,"prof.",null,null,null,null,null,null,null,null,null,null,null,null,null,{"$f":"D24","v":"prof."},null,null,null,null,null,{"$f":"D24","v":"prof."}]
[{"$f":"D25","v":0},"Imię:",null,null,null,null,null,null,null,null,null,null,null,null,null,null,null,{"$f":"D25","v":0},null,null,{"$f":"IF(D25=0,1,0)","v":1},null,null,{"$f":"D25","v":0}]
[{"$f":"D26","v":0},"Nazwisko:",null,null,null,null,null,null,null,null,null,null,null,null,null,null,null,0,null,null,{"$f":"IF(D26=0,1,0)","v":1},null,null,{"$f":"D26","v":0}]
[null,"e-mail:",null,null,null,null,null,null,null,null,null,null,null,null,null,null,null,0,null,null,1,null,null,0]
[]
[{"$f":"IF(SUM(U31,U32,U33)>0,\"OŚWIADCZENIE KANDYDATA (zaznacz krzyżykiem (x) czerwone pola przy oświadczeniach)\",\"OŚWIADCZENIA KANDYDATA\")","v":"OŚWIADCZENIE KANDYDATA (zaznacz krzyżykiem (x) czerwone pola przy oświadczeniach)"}]
[null,"Oświadczam, że, przesyłając niniejsze zgłoszenie: "]
[null,null,"Wyrażam zgodę na przetwarzanie moich danych osobowych, w związku z prowadzonym procesem rekrutacyjnym na dwu- i trzytygodniowe zagraniczne kursy dla doktorantów i młodych naukowców z zakresu umiejętności miękkich, niezbędnych do współpracy z gospodarką – finansowanych w ramach projektu systemowego POIG „Wsparcie systemu zarządzania badaniami naukowymi i ich wynikami”. Jednocześnie przyjmuję do wiadomości, że w okresie trwania rekrutacji i do zakończenia szkolenia mam możliwość wglądu i aktualizacji moich danych osobowych, i że po zakończeniu szkolenia moje dane osobowe zostaną trwale usunięte.",null,null,null,null,null,null,null,null,null,null,null,null,null,null,null,null,null,{"$f":"IF(B31>0,0,1)","v":1},null,null,{"$f":"IF(SUM(U31,U32,U33)=0,\"tak\",\"nie\")","v":"nie"}]
[null,null,"Nie uczestniczyłem/łam w żadnej z dotychczasowych edycji programu Top 500 Innovators.",null,null,null,null,null,null,null,null,null,null,null,null,null,null,null,null,null,{"$f":"IF(B32>0,0,1)","v":1}]
[null,null,"Oświadczam, że posługuję się językiem angielskim w stopniu nie niższym niż C1.",null,null,null,null,null,null,null,null,null,null,null,null,null,null,null,null,null,{"$f":"IF(B33>0,0,1)","v":1}]
[null,{"$f":"IF(SUM(U31:U33)=0,\"Zaznaczono wszystkie wymagane oświadczenia\",\"\")","v":""}]
[]
[{"$f":"IF(SUM(U38,U39,U40,U41)>0,\"LISTA KONTROLNA (zaznacz krzyżykiem (x) czerwone pola przy oświadczeniach)\",\"LISTA KONTROLNA\")","v":"LISTA KONTROLNA (zaznacz krzyżykiem (x) czerwone pola przy oświadczeniach)"}]
[null,"Dodatkowo, obok niniejszego zgłoszenia, załączono do pisma ogólnego XML ePUAP:"]
[null,null,"1. kopię (skan) dokumentu potwierdzającego otwarty przewód doktorski albo oświadczenia o spełnieniu warunku bycia młodym naukowcem, zgodnie z art. 2 pkt 19 ustawy z dnia 30 kwietnia 2010 r. o zasadach finansowania nauki (Dz. U. 2014 r. poz. 1620), wystawionego przez jednostkę (uczelnię/ instytut);",null,null,null,null,null,null,null,null,null,null,null,null,null,null,null,null,null,{"$f":"IF(B38>0,0,1)","v":1},null,null,{"$f":"IF(SUM(U38,U39,U40)=0,\"tak\",\"nie\")","v":"nie"}]
[null,null,"2. kopię (skan) podpisanej opinii opiekuna naukowego;",null,null,null,null,null,null,null,null,null,null,null,null,null,null,null,null,null,{"$f":"IF(B39>0,0,1)","v":1}]
[null,null,"3. wykaz zagadnień, które uczestnik chciałby opanować, wraz ze wskazaniem celu uczestnictwa w szkoleniu;",null,null,null,null,null,null,null,null,null,null,null,null,null,null,null,null,null,1]
[null,null,"4. wykaz kursów, szkoleń dotychczas przeprowadzonych przez kandydata jako trenera grupy (dotyczy kandydatów na II typ szkolenia)."]

{"sheet":"PANEL_PRACOWNIKA","index":1,"n_rows":2,"n_cols":6,"rows_kept":2,"cut":false,"hidden":true,"merged":[[1,0,1,2],[0,0,0,4]]}
["Automatyczne czynności pracownika",null,null,null,null,"Kliknij, by ZAMKNĄĆ BEZ ZAPISYWANIA, bo stracisz e-podpis !"]
["1. Tworzenie ZESTAWIENIA \n2.  Zapisywanie karty oceny (z nazwą dziedziny)",null,null,null,"lokalizacja zestawienia"]

{"sheet":"administrator","index":2,"n_rows":18,"n_cols":8,"rows_kept":18,"cut":false,"hidden":true,"merged":[]}
[null,null,null,null,null,null,null,"wybierz z listy rozwijanej"]
[]
["scieżka","C:\\users\\esawerska\\desktop\\Rejestr-rekrutacja.xlsm",null,null,null,null,null,"dolnośląskie"]
[null,{"$f":"HYPERLINK(B3,\"link\")","v":"link"},null,null,null,null,null,"kujawsko-pomorskie"]
[null,null,null,null,null,null,null,"lubelskie"]
[null,null,null,null,null,null,null,"lubuskie"]
[null,null,null,null,null,null,null,"łódzkie"]
[null,null,null,null,null,null,null,"małopolskie"]
[null,null,null,null,null,null,null,"mazowieckie"]
[null,null,null,null,null,null,null,"opolskie"]
[null,null,null,null,null,null,null,"podkarpackie"]
[null,null,null,null,null,null,null,"podlaskie"]
[null,null,null,null,null,null,null,"pomorskie"]
[null,null,null,null,null,null,null,"śląskie"]
[null,null,null,null,null,null,null,"świętokrzyskie"]
[null,null,null,null,null,null,null,"warmińsko-mazurskie"]
[null,null,null,null,null,null,null,"wielkopolskie"]
[null,null,null,null,null,null,null,"zachodniopomorskie"]